{"text_format":"1","workbook":"xlsx","n_sheets":7,"sheets":["調書１","調書２","調書３","調書３ (2葉目)","任意（表彰・資格・免許他）","リスト ","集計用"],"not_rendered":{"charts":0,"images":0,"macros":1,"external_links":0,"defined_names":33,"comments":1,"pivot_tables":0},"unopened":[],"bounds":{"document_bytes":16777216,"sheet_cells":100000,"rows_first":2000,"rows_last":500,"rows_between":2000,"halvings":0,"cell_chars":16384,"cell_head_chars":4096},"cells_cut":0,"cells_raw":0,"read":"whole","date_system":"1900"}

{"sheet":"調書１","index":0,"n_rows":45,"n_cols":14,"rows_kept":45,"cut":false,"hidden":false,"merged":[[9,0,9,1],[9,2,9,5],[1,11,1,12],[43,9,43,13],[44,9,44,13],[13,14,14,19],[39,4,39,5],[40,4,40,5],[41,4,41,5],[42,4,42,5],[43,4,43,5],[44,4,44,5],[39,9,39,11],[39,12,39,13],[40,9,40,11],[40,12,40,13],[41,9,41,11],[41,12,41,13],[42,7,44,8],[42,9,42,13],[37,12,37,13],[25,2,25,4],[24,5,24,11],[36,4,36,5],[25,5,25,13],[35,0,38,1],[0,0,0,13],[4,0,4,1],[5,0,5,1],[23,0,23,1],[19,0,19,1],[22,0,22,1],[12,0,12,1],[13,0,13,1],[23,5,23,11],[20,8,20,9],[19,8,19,9],[2,8,2,11],[2,12,3,13],[13,2,14,4],[23,2,24,4],[20,0,20,1],[18,0,18,1],[15,2,15,4],[16,3,16,4],[18,8,18,9],[6,0,8,1],[16,8,16,9],[15,8,15,9],[11,14,12,19],[12,8,12,9],[10,0,10,1],[37,4,37,5],[3,5,3,7],[4,5,4,7],[5,5,5,7],[22,8,22,9],[21,8,21,9],[20,5,20,7],[21,5,21,7],[22,5,22,7],[14,8,14,9],[3,8,3,11],[5,8,5,13],[4,8,4,13],[19,12,19,13],[20,12,20,13],[13,5,13,7],[14,5,14,7],[15,5,15,7],[36,12,36,13],[11,5,11,7],[35,4,35,5],[39,0,44,1],[35,7,41,7],[26,0,30,1],[34,2,34,3],[32,4,32,11],[35,12,35,13],[26,12,26,13],[35,9,35,11],[33,4,33,11],[34,4,34,11],[32,12,32,13],[33,12,33,13],[34,12,34,13],[29,2,29,3],[30,2,30,3],[30,4,30,11],[31,4,31,11],[31,2,31,3],[31,0,34,1],[26,2,26,3],[27,2,27,3],[17,8,17,9],[27,12,27,13],[28,12,28,13],[2,5,2,7],[15,0,15,1],[26,4,26,11],[16,5,16,7],[17,5,17,7],[18,5,18,7],[19,5,19,7],[13,8,13,9],[15,12,15,13],[16,12,16,13],[17,12,17,13],[13,12,13,13],[14,12,14,13],[6,3,6,4],[6,6,9,13],[7,3,7,4],[10,8,10,11],[23,12,23,13],[24,12,24,13],[16,0,16,1],[17,0,17,1],[10,5,10,7],[25,0,25,1],[11,12,11,13],[8,3,8,4],[18,12,18,13],[10,12,10,13],[12,5,12,7],[12,12,12,13],[29,4,29,11],[38,4,38,5],[21,12,21,13],[22,12,22,13],[11,8,11,9],[29,12,29,13],[30,12,30,13],[38,9,38,11],[37,9,37,11],[36,9,36,11],[28,2,28,3],[32,2,32,3],[33,2,33,3],[27,4,27,11],[28,4,28,11],[31,12,31,13],[38,12,38,13]]}
["調書（１）都道府県　（22部門）"]
["(様式３の４)",null,null,null,null,null,null,null,null,null,null,"2025-11-01",null,"現在"]
["都道府県番号",{"$f":"IF(C4=\"北海道\",1,IF(C4=\"青森県\",2,IF(C4=\"岩手県\",3,IF(C4=\"宮城県\",4,IF(C4=\"秋田県\",5,IF(C4=\"山形県\",6,IF(C4=\"福島県\",7,IF(C4=\"茨城県\",8,IF(C4=\"栃木県\",9,IF(C4=\"群馬県\",10,IF(C4=\"埼玉県\",11,IF(C4=\"千葉県\",12,IF(C4=\"東京都\",13,IF(C4=\"神奈川県\",14,IF(C4=\"新潟県\",15,IF(C4=\"富山県\",16,IF(C4=\"石川県\",17,IF(C4=\"福井県\",18,IF(C4=\"山梨県\",19,IF(C4=\"長野県\",20,IF(C4=\"岐阜県\",21,IF(C4=\"静岡県\",22,IF(C4=\"愛知県\",23,IF(C4=\"三重県\",24,IF(C4=\"滋賀県\",25,IF(C4=\"京都府\",26,IF(C4=\"大阪府\",27,IF(C4=\"兵庫県\",28,IF(C4=\"奈良県\",29,IF(C4=\"和歌山県\",30,IF(C4=\"鳥取県\",31,IF(C4=\"島根県\",32,IF(C4=\"岡山県\",33,IF(C4=\"広島県\",34,IF(C4=\"山口県\",35,IF(C4=\"徳島県\",36,IF(C4=\"香川県\",37,IF(C4=\"愛媛県\",38,IF(C4=\"高知県\",39,IF(C4=\"福岡県\",40,IF(C4=\"佐賀県\",41,IF(C4=\"長崎県\",42,IF(C4=\"熊本県\",43,IF(C4=\"大分県\",44,IF(C4=\"宮崎県\",45,IF(C4=\"鹿児島県\",46,IF(C4=\"沖縄県\",47,\"-\")))))))))))))))))))))))))))))))))))))))))))))))","v":"-"},"推薦都道府県名","職業部門","22部門","職種名（１）",null,null,"職種名（２）"]
[]
["ふりがな",null,null,"性別",null,"生年月日",null,null,"氏名・現就業先事業所名の外字"]
["氏名",null,null,"年齢",{"$f":"IF(ISBLANK(F6),\"\",DATEDIF(F6,L2,\"Y\"))","v":""}]
["障害名\n障害程度",null,"障害名","障害程度\n（等級）",null,"療育手帳\n判定","【障害程度について】\n○療育手帳による程度の区分\n療育手帳等で次の記載が確認される場合は「A」を選択（Ⓐ、A、A1、A2、A3、1度、2度、A重、A中、A2a、A2b、A最重度、A重度）。それ以外は「B」を選択。\n○重度知的障害者判定による重度判定\n療育手帳による程度の区分「B」のうち、地域障害者職業センターが行う重度知的障害者判定を受け、判定書が交付された者について、当てはまる判定を選択。"]
[]
[]
["障害の概要"]
["現住所",null,null,null,null,"職歴",null,null,"在職期間（年月日）",null,null,null,"在職年月数"]
[null,"〒",null,null,null,null,null,null,null,null,"～",null,{"$f":"DATEDIF(I12,L12,\"Y\")&\"年\"&DATEDIF(I12,L12,\"YM\")&\"ヶ月\"","v":"0年0ヶ月"},{"$f":"DATEDIF(J12,M12,\"Y\")&\"年\"&DATEDIF(J12,M12,\"YM\")&\"ヶ月\"","v":{"$error":"#VALUE!"}}]
["都道府県",null,null,null,null,null,null,null,null,null,"～",null,{"$f":"DATEDIF(I13,L13,\"Y\")&\"年\"&DATEDIF(I13,L13,\"YM\")&\"ヶ月\"","v":"0年0ヶ月"},{"$f":"DATEDIF(J13,M13,\"Y\")&\"年\"&DATEDIF(J13,M13,\"YM\")&\"ヶ月\"","v":{"$error":"#VALUE!"}}]
["市区町村",null,null,null,null,null,null,null,null,null,"～",null,{"$f":"DATEDIF(I14,L14,\"Y\")&\"年\"&DATEDIF(I14,L14,\"YM\")&\"ヶ月\"&\"\"","v":"0年0ヶ月"},{"$error":"#VALUE!"}]
[null,null,null,null,null,null,null,null,null,null,"～",null,"0年0ヶ月",{"$error":"#VALUE!"}]
["TEL ",null,null,null,null,null,null,null,null,null,"～",null,"0年0ヶ月",{"$error":"#VALUE!"}]
["就業先\n(都道府県）",null,null,null,null,null,null,null,null,null,"～",null,"0年0ヶ月",{"$error":"#VALUE!"}]
["所属名",null,null,null,null,null,null,null,null,null,"～",null,{"$f":"DATEDIF(I18,L18,\"Y\")&\"年\"&DATEDIF(I18,L18,\"YM\")&\"ヶ月\"","v":"0年0ヶ月"},{"$error":"#VALUE!"}]
[null,null,null,null,null,null,null,null,null,null,"～",null,"0年0ヶ月",{"$error":"#VALUE!"}]
["企業全体の\n従業員数",null,null,null,null,null,null,null,null,null,"～",null,"0年0ヶ月",{"$error":"#VALUE!"}]
["所在地",null,null,null,null,null,null,null,null,null,"～",null,"0年0ヶ月",{"$error":"#VALUE!"}]
[null,"〒",null,null,null,null,null,null,null,null,"～",null,"0年0ヶ月",{"$error":"#VALUE!"}]
["都道府県",null,null,null,null,null,null,null,null,null,"～",null,"0年0ヶ月",{"$error":"#VALUE!"}]
["市区町村",null,null,null,null,"在職期間　計"]
[null,null,null,null,null,"重複期間を除く在職期間　計"]
["TEL ",null,null,null,null,{"$f":"L2","v":"2025-11-01"}]
["表彰歴",null,"表彰の種類",null,"表彰の概要",null,null,null,null,null,null,null,"取得年月"]
[null,null,"大臣\n表彰"]
[null,null,"知事・行政機関の局長表彰"]
[null,null,"全国レベルの業界団体表彰"]
[null,null,"その他"]
["免許・\n資格等",null,"免許の種類",null,"免許・資格等の概要",null,null,null,null,null,null,null,"取得年月"]
[null,null,"職業訓練指導員免許"]
[null,null,"技能検定委員"]
[null,null,"特許・実用新案等"]
["アビリンピック\n入賞歴",null,"大会名など","開催回\n認定年度","競技種目名",null,"順位","技能検定","等級","技能士の名称",null,null,"取得年月"]
[null,null,"国際アビリンピック"]
[null,null,"全国障害者技能競技大会\n（全国アビリンピック）"]
[null,null,"地方アビリンピック"]
["大会\n表彰歴等",null,"技能グランプリ\n（一級技能士競技大会）"]
[null,null,"技能五輪国際大会入賞歴"]
[null,null,"技能五輪全国大会入賞歴"]
[null,null,"高度熟練技能者",null,null,null,null,"技能・技術が\n分かるサイト等\n（HPのURLを記載）"]
[null,null,"ものづくりマイスター"]
[null,null,"全技連マイスター"]

{"sheet":"調書２","index":1,"n_rows":36,"n_cols":12,"rows_kept":36,"cut":false,"hidden":false,"merged":[[0,0,0,11],[3,3,3,5],[4,3,4,5],[3,6,3,8],[4,6,4,8],[3,10,3,11],[4,10,4,11],[18,9,34,11],[17,6,17,8],[18,6,34,8],[5,0,5,2],[17,0,17,2],[17,3,17,5],[18,0,34,2],[18,3,34,5],[12,0,12,2],[13,0,13,1],[14,0,14,1],[15,0,15,1],[13,4,15,11],[12,4,12,11],[8,5,9,11],[11,4,11,11],[6,5,6,11],[7,5,7,11],[5,4,5,11],[17,9,17,11],[16,0,16,11],[5,3,15,3],[10,7,10,11]]}
["調書（２）都道府県（22部門）"]
[]
[{"$f":"調書１!A2","v":"(様式３の４)"}]
["都道府県番号","都道府県名","職業\n部門","職種名（１）",null,null,"職種名（２）",null,null,"ふりがな",{"$f":"IF(調書１!$C$5=\"\",\"\",調書１!$C$5)","v":""}]
[{"$f":"IF(調書１!$B$3=\"\",\"\",調書１!$B$3)","v":"-"},{"$f":"IF(調書１!$C$4=\"\",\"\",調書１!$C$4)","v":""},{"$f":"調書１!$E$3","v":"22部門"},{"$f":"IF(調書１!$F$4=\"\",\"\",調書１!$F$4)","v":""},null,null,{"$f":"IF(調書１!$I$4=\"\",\"\",調書１!$I$4)","v":""},null,null,"氏名",{"$f":"IF(調書１!$C$6=\"\",\"\",調書１!$C$6)","v":""}]
["過去５年の推薦回数",null,null,"推薦者及び推薦理由","（所在地又は住所）"]
[null,null,"年度",null,"〒"]
[null,null,"年度",null,"都道府県"]
[null,null,"年度",null,"市区町村"]
[null,null,"年度"]
[null,null,"年度",null,"（推薦都道府県知事名）",null,"TEL"]
["計",{"$f":"COUNTA(B7:B11)","v":0},"回"]
["推薦総数等",null,null,null,"（推薦理由）"]
["選考対象者総数"]
["推薦総数"]
[]
["卓越した技能の概要"]
["技能の概要\n(障害の克服と技能研鑽への\n工夫や取り組み）",null,null,"功績・貢献の概要",null,null,"技能の指導及び育成の概要",null,null,"現役性"]
[]
[]
[]
[]
[]
[]
[]
[]
[]
[]
[]
[]
[]
[]
[]
[]
[]
[null,null,{"$f":"LEN(A19)","v":0},null,null,{"$f":"LEN(D19)","v":0},null,null,{"$f":"LEN(G19)","v":0},null,null,{"$f":"LEN(J19)","v":0}]

{"sheet":"調書３","index":2,"n_rows":42,"n_cols":12,"rows_kept":42,"cut":false,"hidden":false,"merged":[[7,3,40,5],[7,6,40,8],[7,9,40,11],[7,0,40,2],[5,0,5,11],[6,0,6,2],[6,3,6,5],[6,6,6,8],[6,9,6,11],[0,0,0,11],[3,3,3,5],[3,6,3,8],[3,10,3,11],[4,3,4,5],[4,6,4,8],[4,10,4,11]]}
["調書（３）都道府県（22部門）"]
[]
[{"$f":"調書１!A2","v":"(様式３の４)"}]
["都道府\n県番号","都道府県名","職業\n部門","職種名（１）",null,null,"職種名（２）",null,null,"ふりがな",{"$f":"IF(調書１!$C$5=\"\",\"\",調書１!$C$5)","v":""}]
[{"$f":"IF(調書１!$B$3=\"\",\"\",調書１!$B$3)","v":"-"},{"$f":"IF(調書１!$C$4=\"\",\"\",調書１!$C$4)","v":""},{"$f":"調書１!$E$3","v":"22部門"},{"$f":"IF(調書１!$F$4=\"\",\"\",調書１!$F$4)","v":""},null,null,{"$f":"IF(調書１!$I$4=\"\",\"\",調書１!$I$4)","v":""},null,null,"氏名",{"$f":"IF(調書１!$C$6=\"\",\"\",調書１!$C$6)","v":""}]
["卓越した技能の概要（続き）"]
["技能の概要\n(障害の克服と技能研鑽への\n工夫や取り組み）",null,null,"功績・貢献の概要",null,null,"技能の指導及び育成の概要",null,null,"現役性"]
[]
[]
[]
[]
[]
[]
[]
[]
[]
[]
[]
[]
[]
[]
[]
[]
[]
[]
[]
[]
[]
[]
[]
[]
[]
[]
[]
[]
[]
[]
[]
[]
[]
[]
[null,null,{"$f":"LEN(A8)","v":0},null,null,{"$f":"LEN(D8)","v":0},null,null,{"$f":"LEN(G8)","v":0},null,null,{"$f":"LEN(J8)","v":0}]

{"sheet":"調書３ (2葉目)","index":3,"n_rows":42,"n_cols":12,"rows_kept":42,"cut":false,"hidden":false,"merged":[[7,0,40,2],[7,3,40,5],[7,6,40,8],[7,9,40,11],[0,0,0,11],[3,3,3,5],[3,6,3,8],[3,10,3,11],[4,3,4,5],[4,6,4,8],[4,10,4,11],[5,0,5,11],[6,0,6,2],[6,3,6,5],[6,6,6,8],[6,9,6,11]]}
["調書（３）都道府県（22部門）"]
[]
[{"$f":"調書１!A2","v":"(様式３の４)"}]
["都道府\n県番号","都道府県名","職業\n部門","職種名（１）",null,null,"職種名（２）",null,null,"ふりがな",{"$f":"IF(調書１!$C$5=\"\",\"\",調書１!$C$5)","v":""}]
[{"$f":"IF(調書１!$B$3=\"\",\"\",調書１!$B$3)","v":"-"},{"$f":"IF(調書１!$C$4=\"\",\"\",調書１!$C$4)","v":""},{"$f":"調書１!$E$3","v":"22部門"},{"$f":"IF(調書１!$F$4=\"\",\"\",調書１!$F$4)","v":""},null,null,{"$f":"IF(調書１!$I$4=\"\",\"\",調書１!$I$4)","v":""},null,null,"氏名",{"$f":"IF(調書１!$C$6=\"\",\"\",調書１!$C$6)","v":""}]
["卓越した技能の概要（続き）"]
["技能の概要\n(障害の克服と技能研鑽への\n工夫や取り組み）",null,null,"功績・貢献の概要",null,null,"技能の指導及び育成の概要",null,null,"現役性"]
[]
[]
[]
[]
[]
[]
[]
[]
[]
[]
[]
[]
[]
[]
[]
[]
[]
[]
[]
[]
[]
[]
[]
[]
[]
[]
[]
[]
[]
[]
[]
[]
[]
[]
[null,null,{"$f":"LEN(A8)","v":0},null,null,{"$f":"LEN(D8)","v":0},null,null,{"$f":"LEN(G8)","v":0},null,null,{"$f":"LEN(J8)","v":0}]

{"sheet":"任意（表彰・資格・免許他）","index":4,"n_rows":35,"n_cols":2,"rows_kept":35,"cut":false,"hidden":false,"merged":[[34,0,34,1]]}
[null,"別紙"]
["表彰歴","取得年月"]
[]
[]
[]
[]
[]
[]
[]
[]
[]
[]
[]
[]
[]
[]
[]
[]
[]
["免許・資格等","取得年月"]
[]
[]
[]
[]
[]
[]
[]
[]
[]
[]
[]
[]
[]
[]
["※調書（１）に書き切れなかった「表彰歴」及び「免許・資格等」について、任意提出にて使用する。"]

{"sheet":"リスト ","index":5,"n_rows":157,"n_cols":26,"rows_kept":157,"cut":false,"hidden":true,"merged":[]}
["都道府県","都道府県番号","推薦区分","部門番号","性別","表彰の種類","免許の種類","和暦","職業訓練指導員免許","障害の名前","障害の等級","療育手帳の判定","国際アビリンピック","全国アビリンピック","地方アビリンピック","大会結果","特級","一級","二級","単一等級","三級","ものづくりマイスター","技能五輪国際大会の競技職種","技能五輪全国大会の競技職種","全技連マイスター","技能グランプリ\n(一級技能士競技大会）"]
["北海道",1,"都道府県",1,"男","大臣表彰",null,"昭和","園芸科","身体障害\n（視覚障害）","1級","A","家具（応用）","洋裁",null,"金賞\n(1位）","鋳造：鋳造作業","アルミニウム陽極酸化処理：陽極酸化処理作業","アルミニウム陽極酸化処理：陽極酸化処理作業","溶射：肉盛溶射作業","かわらぶき：かわらぶき作業","造園","産業機械","造園","建築板金","カーペット系床仕上げ"]
["青森県",2,"団体",2,"女","知事・行政機関の局長表彰",null,"平成","造園科","身体障害\n（聴覚障害）","2級","B","家具（基礎）","家具",null,"銀賞\n(2位）","金属熱処理：金属熱処理作業","カーテンウォール施工：金属製カーテンウォール工事作業","カーテンウォール施工：金属製カーテンウォール工事作業","路面標示施工：溶融ペイントハンドマーカー工事作業","テクニカルイラストレーション：テクニカルイラストレーションCAD作業","さく井","情報ネットワーク施工","精密機器組立て","印章彫刻","ガラス施工"]
["岩手県",3,"一般",3,null,"全国レベルの業界団体表彰",null,"令和","森林環境保全科","身体障害\n（音声・言語）","3級","B（重度判定）","電工","DTP",null,"銅賞\n(3位)","機械加工：機械加工作業","ガラス施工：ガラス工事作業","ガラス施工：ガラス工事作業","路面標示施工：加熱ペイントマシンマーカー工事作業","テクニカルイラストレーション：テクニカルイラストレーション手書き作業","金属溶解","製造チームチャレンジ","旋盤","工場板金","かわらぶき"]
["宮城県",4,null,4,null,"その他",null,null,"鉄鋼科","身体障害\n（肢体不自由）","4級",null,"造園","機械CAD",null,"特別賞","放電加工（非接触除去加工）：放電加工作業","かわらぶき：かわらぶき作業","かわらぶき：かわらぶき作業","塗料調色：調色作業","とび：とび作業","鋳造","メカトロニクス","フライス盤","冷凍空気調和機器施工","タイル張り"]
["秋田県",5,null,5,null,null,null,null,"鋳造科","身体障害（内部障害）","5級",null,"塗装（塗装と装飾）","建築CAD",null,"出場","金型製作：金型製作作業","コンクリート圧送施工：コンクリート圧送工事作業","コンクリート圧送施工：コンクリート圧送工事作業","産業洗浄：高圧洗浄作業","プラスチック成形：射出成形作業","鍛造","機械製図CAD","構造物鉄工","防水施工","フライス盤"]
["山形県",6,null,6,null,null,null,null,"鍛造科","知的障害","6級",null,"タイル貼り","電子機器組立",null,"その他","金属プレス加工：金属プレス加工作業","さく井：パーカッション式さく井工事作業","さく井：パーカッション式さく井工事作業","電子回路接続：電子回路接続作業","フラワー装飾：フラワー装飾作業","金属熱処理","CNC旋盤","自動車板金","陶磁器製造","プラスチック系床仕上げ"]
["福島県",7,null,7,null,null,null,null,"熱処理科","精神障害","7級",null,"籠製作","義肢",null,null,"工場板金：工場板金作業","さく井：ロータリー式さく井工事作業","さく井：ロータリー式さく井工事作業","バルコニー施工：金属製バルコニー工事作業","プリント配線板製造：プリント配線板製造作業","粉末冶金","CNCフライス盤","曲げ板金","フラワー装飾","フラワー装飾"]
["茨城県",8,null,8,null,null,null,null,"機械科 ",null,"8級",null,"陶芸","歯科技工",null,null,"めっき：めっき作業","サッシ施工：ビル用サッシ施工作業","サッシ施工：ビル用サッシ施工作業",null,"プリント配線板製造：プリント配線板設計作業","機械加工","業務用ITｿﾌﾄｳｪｱ･ｿﾘｭｰｼｮﾝｽﾞ","機械組立て","パン製造","ペイント仕上げ広告技術"]
["栃木県",9,null,9,null,null,null,null,"溶接科",null,null,null,"洋裁（応用）","ワード・プロセッサ",null,null,"仕上げ：仕上げ作業","ダイカスト：コールドチャンバダイカスト作業","ダイカスト：コールドチャンバダイカスト作業",null,"ブロック建築：コンクリートブロック工事作業","放電加工","溶接","抜き型","漆器製造","レストランサービス"]
["群馬県",10,null,10,null,null,null,null,"塑性加工科 ",null,null,null,"洋裁（基礎）","データベース",null,null,"機械検査：機械検査作業","ダイカスト：ホットチャンバダイカスト作業","ダイカスト：ホットチャンバダイカスト作業",null,"めっき：電気めっき作業","金型製作","印刷","電子機器組立て","配管","印章木口彫刻"]
["埼玉県",11,null,11,null,null,null,null,"構造物鉄工科",null,null,null,"フラワーアレンジメント","ホームページ",null,null,"ダイカスト：ダイカスト作業","タイル張り：タイル張り作業","タイル張り：タイル張り作業",null,"園芸装飾：室内園芸装飾作業","金属プレス加工","タイル張り","工場電気設備","樹脂接着剤注入施工","園芸装飾"]
["千葉県",12,null,12,null,null,null,null,"金属表面処理科 ",null,null,null,"理容・美容","フラワーアレンジメント",null,null,"電子機器組立て：電子機器組立て作業","テクニカルイラストレーション：テクニカルイラストレーションCAD作業","テクニカルイラストレーション：テクニカルイラストレーションCAD作業",null,"化学分析：化学分析作業","鉄工","自動車板金","冷凍空調技術","縫製機械整備","家具"]
["東京都",13,null,13,null,null,null,null,"電子科 ",null,null,null,"貴金属装身具","コンピュータプログラミング",null,null,"電気機器組立て：電気機器組立て作業","テクニカルイラストレーション：テクニカルイラストレーション手書き作業","テクニカルイラストレーション：テクニカルイラストレーション手書き作業",null,"家具製作：家具手加工作業","建築板金","航空機整備","洋裁","菓子製造","機械組立て"]
["神奈川県",14,null,14,null,null,null,null,"メカトロニクス科 ",null,null,null,"紳士服仕立て","ビルクリーニング",null,null,"半導体製品製造：半導体製品製造作業","とび：とび作業","とび：とび作業",null,"機械･プラント製図：機械製図CAD作業","工場板金","配管","和裁","石材施工","貴金属装身具"]
["新潟県",15,null,15,null,null,null,null,"電気科",null,null,null,"ベーカリー（製パン）","製品パッキング",null,null,"プリント配線板製造：プリント配線板製造作業","ニット製品製造：靴下製造作業","ニット製品製造：靴下製造作業",null,"機械･プラント製図：機械製図手書き作業","めつき","電子機器組立て","木型","内装仕上げ施工","建具"]
["富山県",16,null,16,null,null,null,null,"電気工事科",null,null,null,"ケーキデコレーション","喫茶サービス",null,null,"自動販売機調整：自動販売機調整作業","ハム・ソーセージ・ベーコン製造：ハム・ソーセージ・ベーコン製造作業","ハム・ソーセージ・ベーコン製造：ハム・ソーセージ・ベーコン製造作業",null,"機械加工：フライス盤作業","アルミニウム陽極酸化処理","ウェブデザイン","家具","ウェブデザイン","建築大工"]
["石川県",17,null,17,null,null,null,null,"コンピュータ制御科",null,null,null,"カービング（野菜）","オフィスアシスタント",null,null,"光学機器製造：光学機器製造作業","パン製造：パン製造作業","パン製造：パン製造作業",null,"機械加工：マシニングセンタ作業","溶射","電工","建具","建設機械整備","建築配管"]
["福井県",18,null,18,null,null,null,null,"発変電科",null,null,null,"料理（個人）","表計算",null,null,"内燃機関組立て：内燃機関組立て作業","プラスチック成形：インフレーション成形作業","プラスチック成形：インフレーション成形作業",null,"機械加工：数値制御旋盤作業","金属ばね製造","工場電気設備","石工","建築大工","畳製作"]
["山梨県",19,null,19,null,null,null,null,"送配電科",null,null,null,"料理（チーム）","ネイル施術",null,null,"空気圧装置組立て：空気圧装置組立て作業","プラスチック成形：ブロー成形作業","プラスチック成形：ブロー成形作業",null,"機械加工：普通旋盤作業","ロープ加工","れんが積み","洋菓子製造","家具製作","寝具"]
["長野県",20,null,20,null,null,null,null,"自動車製造科",null,null,null,"パティシエ・製菓","写真撮影",null,null,"油圧装置調整：油圧装置調整作業","プラスチック成形：射出成形作業","プラスチック成形：射出成形作業",null,"機械加工：平面研削盤作業","仕上げ","左官","情報ネットワーク施工","建具製作","紳士服製作"]
["岐阜県",21,null,21,null,null,null,null,"自動車整備科",null,null,null,"レストランサービス","パソコン組立",null,null,"建設機械整備：建設機械整備作業","プラスチック成形：真空成形作業","プラスチック成形：真空成形作業",null,"機械検査：機械検査作業","切削工具研削","広告美術","建築大工","かわらぶき","石工"]
["静岡県",22,null,22,null,null,null,null,"自動車車体整備科",null,null,null,"歯科技工","パソコン組立（視覚障害者に限る）",null,null,"婦人子供服製造：婦人子供服製造作業","フラワー装飾：フラワー装飾作業","フラワー装飾：フラワー装飾作業",null,"貴金属装身具製作：貴金属装身具製作作業","機械検査","移動式ロボット","とび","サッシ施工","染色補正"]
["愛知県",23,null,null,null,null,null,null,"航空機製造科",null,null,null,"ネイリスト","パソコンデータ入力（知的障害者に限る）",null,null,"紳士服製造：紳士服製造作業","プリプレス：DTP作業","プリプレス：DTP作業",null,"金属熱処理：一般熱処理作業","ダイカスト","家具","左官","写真","旋盤"]
["三重県",24,null,null,null,null,null,null,"航空機整備科 ",null,null,null,"マッサージ","縫製（知的障害者に限る）",null,null,"プラスチック成形：プラスチック成形作業","プリント配線板製造：プリント配線板製造作業","プリント配線板製造：プリント配線板製造作業",null,"金属熱処理：高周波･炎熱処理作業","機械保全","建具","タイル張り","機械・プラント製図","造園"]
["滋賀県",25,null,null,null,null,null,null,"鉄道車両科 ",null,null,null,"ITネットワークシステム運用・管理","木工（知的障害者に限る）",null,null,"パン製造：パン製造作業","ブロック建築：コンクリートブロック工事作業","ブロック建築：コンクリートブロック工事作業",null,"金属熱処理：浸炭･浸炭窒化･窒化処理作業","電子回路接続","建築大工","配管","紙器・段ボール箱製造","日本料理"]
["京都府",26,null,null,null,null,null,null,"造船科",null,null,null,"コンピュータ組立","その他",null,null,null,"みそ製造：みそ製造作業","みそ製造：みそ製造作業",null,"型枠施工：型枠工事作業","電子機器組立て","貴金属装身具","機械製図","とび","粘着シート仕上げ広告美術"]
["大阪府",27,null,null,null,null,null,null,"時計科",null,null,null,"コンピュータプログラミング",null,null,null,null,"めっき：電気めっき作業","めっき：電気めっき作業",null,"建築大工：大工工事作業","電気機器組立て","フラワー装飾","貴金属装身具","調理（日本料理）","表具"]
["兵庫県",28,null,null,null,null,null,null,"光学ガラス科 ",null,null,null,"ホームページ作成","物流ワーク",null,null,null,"めっき：溶融亜鉛めっき作業","めっき：溶融亜鉛めっき作業",null,"工場板金：曲げ板金作業","半導体製品製造","美容／理容","メカトロニクス","鋳造","婦人服製作"]
["奈良県",29,null,null,null,null,null,null,"光学機器科 ",null,null,null,"データ処理","ドローン操作",null,null,null,"ロープ加工：ロープ加工作業","ロープ加工：ロープ加工作業",null,"工場板金：打出し板金作業","プリント配線板製造","ビューティーセラピー","電気溶接","酒造","壁装"]
["和歌山県",30,null,null,null,null,null,null,"計測機器科",null,null,null,"電子機器組立","OA機器等メンテナンス",null,null,null,"印刷：オフセット印刷作業","印刷：オフセット印刷作業",null,"広告美術仕上げ：広告面粘着シート仕上げ作業","自動販売機調整","洋裁","電工","畳制作","和裁"]
["鳥取県",31,null,null,null,null,null,null,"理化学機器科 ",null,null,null,"自転車組立",null,null,null,null,"園芸装飾：室内園芸装飾作業","園芸装飾：室内園芸装飾作業",null,"左官：左官作業","産業車両整備","洋菓子製造","自動車工","左官"]
["島根県",32,null,null,null,null,null,null,"製材機械科 ",null,null,null,"機械CAD",null,null,null,null,"化学分析：化学分析作業","化学分析：化学分析作業",null,"仕上げ：機械組立仕上げ作業","鉄道車両製造・整備","自動車工","車体塗装","調理（すし料理）"]
["岡山県",33,null,null,null,null,null,null,"内燃機関科",null,null,null,"溶接",null,null,null,null,"家具製作：家具手加工作業","家具製作：家具手加工作業",null,"時計修理：時計修理作業","光学機器製造","西洋料理","時計修理","染色"]
["広島県",34,null,null,null,null,null,null,"縫製機械科 ",null,null,null,"かぎ針編み",null,null,null,null,"菓子製造：洋菓子製造作業","菓子製造：洋菓子製造作業",null,"写真：肖像写真デジタル作業","複写機組立て","レストランサービス","ウェブデザイン","表装"]
["山口県",35,null,null,null,null,null,null,"建設機械科",null,null,null,"刺繍",null,null,null,null,"菓子製造：和菓子製造作業","菓子製造：和菓子製造作業",null,"商品装飾展示：商品装飾展示作業","内燃機関組立て","車体塗装","ITネットワークシステム管理","ガラス施工"]
["徳島県",36,null,null,null,null,null,null,"建設機械運転科",null,null,null,"絵画・不要品再生",null,null,null,null,"機械･プラント製図：機械製図CAD作業","機械･プラント製図：機械製図CAD作業",null,"造園：造園工事作業","空気圧装置組立て","造園","グラフィックデザイン","着付け"]
["香川県",37,null,null,null,null,null,null,"農業機械科 ",null,null,null,"木彫",null,null,null,null,"機械･プラント製図：機械製図手書き作業","機械･プラント製図：機械製図手書き作業",null,"鋳造：鋳鉄鋳物鋳造作業","油圧装置調整","冷凍空調技術","業務用ITソフトウェア・ソリューションズ","調理（西洋料理）"]
["愛媛県",38,null,null,null,null,null,null,"冷凍空調機器科",null,null,null,"キャラクターデザイン",null,null,null,null,"機械加工：フライス盤作業","機械加工：フライス盤作業",null,"鉄筋施工：鉄筋施工図作成作業","縫製機械整備","ITネットワークシステム管理","クラウドコンピューティング","金属研磨仕上げ"]
["高知県",39,null,null,null,null,null,null,"織機調整科",null,null,null,"写真撮影（屋外）",null,null,null,null,"機械加工：ホブ盤作業","機械加工：ホブ盤作業",null,"鉄筋施工：鉄筋組立て作業","建設機械整備","グラフィックデザイン","サイバーセキュリティ","プラスチック成形"]
["福岡県",40,null,null,null,null,null,null,"織布科",null,null,null,"写真撮影（スタジオ）",null,null,null,null,"機械加工：マシニングセンタ作業","機械加工：マシニングセンタ作業",null,"電気機器組立て：シーケンス制御作業","農業機械整備","看護／介護","モバイルアプリケーション開発","ブロック建築"]
["佐賀県",41,null,null,null,null,null,null,"染色科",null,null,null,"ポスターデザイン",null,null,null,null,"機械加工：円筒研削盤作業","機械加工：円筒研削盤作業",null,"電気機器組立て：配電盤･制御盤組立て作業","冷凍空気調和機器施工","構造物鉄工","3Dデジタルゲームアート","ウェルポイント施工"]
["長崎県",42,null,null,null,null,null,null,"ニット科",null,null,null,"出版",null,null,null,null,"機械加工：心無し研削盤作業","機械加工：心無し研削盤作業",null,"電気製図：配電盤･制御盤製図作業","染色","プラスチック金型",null,"レストランサービス"]
["熊本県",43,null,null,null,null,null,null,"洋裁科 ",null,null,null,"英文ワープロ",null,null,null,null,"機械加工：数値制御フライス盤作業","機械加工：数値制御フライス盤作業",null,"電子機器組立て：電子機器組立て作業","ニット製品製造","ビジュアル販売促進",null,"調理（中国料理）"]
["大分県",44,null,null,null,null,null,null,"洋服科",null,null,null,"クリーニングサービス",null,null,null,null,"機械加工：数値制御旋盤作業","機械加工：数値制御旋盤作業",null,"塗装：金属塗装作業","婦人子供服製造","試作モデル製作",null,"電機機組立て"]
["宮崎県",45,null,null,null,null,null,null,"和裁科",null,null,null,"その他",null,null,null,null,"機械加工：普通旋盤作業","機械加工：普通旋盤作業",null,"内燃機関組立て：量産形内燃機関組立て作業","紳士服製造","建設コンクリート施工",null,"婦人子供服製造"]
["鹿児島県",46,null,null,null,null,null,null,"寝具科",null,null,null,null,null,null,null,null,"機械加工：平面研削盤作業","機械加工：平面研削盤作業",null,"配管：建築配管作業","和裁","パン製造",null,"塗装"]
["沖縄県",47,null,null,null,null,null,null,"帆布製品科 ",null,null,null,null,null,null,null,null,"機械検査：機械検査作業","機械検査：機械検査作業",null,"舞台機構調整：音響機構調整作業","寝具製作","重機メンテナンス",null,"調理（麺料理）"]
[null,"－",null,null,null,null,null,null,"縫製科 ",null,null,null,null,null,null,null,null,"機械木工：機械木工作業","機械木工：機械木工作業",null,"冷凍空気調和機器施工：冷凍空気調和機器施工作業","帆布製品製造","3Dデジタルゲームアート",null,"機械加工"]
[null,null,null,null,null,null,null,null,"木型科 ",null,null,null,null,null,null,null,null,"機械木工：木工機械整備作業","機械木工：木工機械整備作業",null,"和裁：和服製作作業","布はく縫製","貨物輸送",null,"機械検査"]
[null,null,null,null,null,null,null,null,"木工科",null,null,null,null,null,null,null,null,"貴金属装身具製作：貴金属装身具製作作業","貴金属装身具製作：貴金属装身具製作作業",null,null,"機械木工","化学実験技術",null,"半導体製品製造"]
[null,null,null,null,null,null,null,null,"木材工芸科 ",null,null,null,null,null,null,null,null,"義肢･装具製作：義肢製作作業","義肢･装具製作：義肢製作作業",null,null,"木型製作","クラウドコンピューティング",null,"紳士服製造"]
[null,null,null,null,null,null,null,null,"竹工芸科",null,null,null,null,null,null,null,null,"強化プラスチック成形：手積み積層成形作業","強化プラスチック成形：手積み積層成形作業",null,null,"家具製作","サイバーセキュリティ",null,"タイル張り"]
[null,null,null,null,null,null,null,null,"紙器科",null,null,null,null,null,null,null,null,"金属ばね製造：線ばね製造作業","金属ばね製造：線ばね製造作業",null,null,"建具製作","水技術",null,"路面標示施工"]
[null,null,null,null,null,null,null,null,"製版・印刷科 ",null,null,null,null,null,null,null,null,"金属ばね製造：薄板ばね製造作業","金属ばね製造：薄板ばね製造作業",null,null,"紙器・段ボール箱製造","ホテルレセプション",null,"園芸装飾"]
[null,null,null,null,null,null,null,null,"製本科 ",null,null,null,null,null,null,null,null,"金属プレス加工：金属プレス作業","金属プレス加工：金属プレス作業",null,null,"プリプレス","3Dプリント",null,"放電加工"]
[null,null,null,null,null,null,null,null,"プラスチック製品科 ",null,null,null,null,null,null,null,null,"金属材料試験：機械試験作業","金属材料試験：機械試験作業",null,null,"印刷","デジタル・コンストラクション",null,"機械保全"]
[null,null,null,null,null,null,null,null,"レザー加工科 ",null,null,null,null,null,null,null,null,"金属材料試験：組織試験作業","金属材料試験：組織試験作業",null,null,"製本","工業デザイン技術※",null,"和裁"]
[null,null,null,null,null,null,null,null,"ガラス科 ",null,null,null,null,null,null,null,null,"金属熱処理：一般熱処理作業","金属熱処理：一般熱処理作業",null,null,"プラスチック成形","インダストリー4.0",null,"貴金属装身具製作"]
[null,null,null,null,null,null,null,null,"ほうろう製品科",null,null,null,null,null,null,null,null,"金属熱処理：高周波･炎熱処理作業","金属熱処理：高周波･炎熱処理作業",null,null,"強化プラスチック成形","モバイルアプリケーション開発",null,"広告美術仕上げ"]
[null,null,null,null,null,null,null,null,"陶磁器科",null,null,null,null,null,null,null,null,"金属熱処理：浸炭･浸炭窒化･窒化処理作業","金属熱処理：浸炭･浸炭窒化･窒化処理作業",null,null,"陶磁器製造","光電子技術",null,"ロープ加工"]
[null,null,null,null,null,null,null,null,"ブロック建築科",null,null,null,null,null,null,null,null,"金属溶解：軽合金溶解炉溶解作業","金属溶解：軽合金溶解炉溶解作業",null,null,"石材施工","鉄道車両技術※",null,"ビルクリーニング"]
[null,null,null,null,null,null,null,null,"石材科",null,null,null,null,null,null,null,null,"空気圧装置組立て：空気圧装置組立て作業","空気圧装置組立て：空気圧装置組立て作業",null,null,"パン製造","再生可能エネルギー",null,"寝具製作"]
[null,null,null,null,null,null,null,null,"麺科",null,null,null,null,null,null,null,null,"型枠施工：型枠工事作業","型枠施工：型枠工事作業",null,null,"菓子製造","産業用ロボット",null,"造園"]
[null,null,null,null,null,null,null,null,"パン・菓子科",null,null,null,null,null,null,null,null,"型枠施工：型枠工事作業","型枠施工：型枠工事作業",null,null,"製麺",null,null,"型枠施工"]
[null,null,null,null,null,null,null,null,"食肉科",null,null,null,null,null,null,null,null,"建具製作：木製建具機械加工作業","建具製作：木製建具機械加工作業",null,null,"ハム・ソーセージ・ベーコン製造",null,null,"さく井"]
[null,null,null,null,null,null,null,null,"水産物加工科",null,null,null,null,null,null,null,null,"建具製作：木製建具手加工作業","建具製作：木製建具手加工作業",null,null,"水産練り製品製造",null,null,"鉄筋施工"]
[null,null,null,null,null,null,null,null,"発酵科",null,null,null,null,null,null,null,null,"建設機械整備：建設機械整備作業","建設機械整備：建設機械整備作業",null,null,"みそ製造",null,null,"化学分析"]
[null,null,null,null,null,null,null,null,"建築科",null,null,null,null,null,null,null,null,"建築大工：大工工事作業","建築大工：大工工事作業",null,null,"酒造",null,null,"帆布製品製造"]
[null,null,null,null,null,null,null,null,"屋根科",null,null,null,null,null,null,null,null,"建築板金：ダクト板金作業","建築板金：ダクト板金作業",null,null,"情報配線施工",null,null,"建設関係"]
[null,null,null,null,null,null,null,null,"とび科",null,null,null,null,null,null,null,null,"建築板金：内外装板金作業","建築板金：内外装板金作業",null,null,"建築大工",null,null,"窯業・土石関係"]
[null,null,null,null,null,null,null,null,"左官・タイル科",null,null,null,null,null,null,null,null,"光学機器製造：光学ガラス研磨作業","光学機器製造：光学ガラス研磨作業",null,null,"枠組壁建築",null,null,"金属加工関係"]
[null,null,null,null,null,null,null,null,"築炉科",null,null,null,null,null,null,null,null,"光学機器製造：光学機器組立て作業","光学機器製造：光学機器組立て作業",null,null,"かわらぶき",null,null,"一般機械器具関係"]
[null,null,null,null,null,null,null,null,"畳科",null,null,null,null,null,null,null,null,"工場板金：機械板金作業","工場板金：機械板金作業",null,null,"とび",null,null,"食料品関係"]
[null,null,null,null,null,null,null,null,"配管科",null,null,null,null,null,null,null,null,"工場板金：曲げ板金作業","工場板金：曲げ板金作業",null,null,"左官",null,null,"衣服･繊維製品関係"]
[null,null,null,null,null,null,null,null,"住宅設備機器科",null,null,null,null,null,null,null,null,"工場板金：数値制御タレットパンチプレス板金作業","工場板金：数値制御タレットパンチプレス板金作業",null,null,"築炉",null,null,"木材・木製品・紙加工品関係"]
[null,null,null,null,null,null,null,null,"さく井科",null,null,null,null,null,null,null,null,"工場板金：打出し板金作業","工場板金：打出し板金作業",null,null,"ブロック建築",null,null,"プラスチック製品関係"]
[null,null,null,null,null,null,null,null,"建設科",null,null,null,null,null,null,null,null,"広告美術仕上げ：広告面粘着シート仕上げ作業","広告美術仕上げ：広告面粘着シート仕上げ作業",null,null,"エーエルシーパネル施工",null,null,"貴金属・装身具関係"]
[null,null,null,null,null,null,null,null,"枠組壁建築科",null,null,null,null,null,null,null,null,"左官：左官作業","左官：左官作業",null,null,"タイル張り",null,null,"その他"]
[null,null,null,null,null,null,null,null,"プレハブ建築科",null,null,null,null,null,null,null,null,"産業車両整備：産業車両整備作業","産業車両整備：産業車両整備作業",null,null,"畳製作"]
[null,null,null,null,null,null,null,null,"スレート科",null,null,null,null,null,null,null,null,"仕上げ：機械組立仕上げ作業","仕上げ：機械組立仕上げ作業",null,null,"配管"]
[null,null,null,null,null,null,null,null,"建築板金科",null,null,null,null,null,null,null,null,"仕上げ：金型仕上げ作業","仕上げ：金型仕上げ作業",null,null,"厨房設備施工"]
[null,null,null,null,null,null,null,null,"防水科",null,null,null,null,null,null,null,null,"仕上げ：治工具仕上げ作業","仕上げ：治工具仕上げ作業",null,null,"型枠施工"]
[null,null,null,null,null,null,null,null,"インテリア科",null,null,null,null,null,null,null,null,"紙器・段ボール箱製造：段ボール箱製造作業","紙器・段ボール箱製造：段ボール箱製造作業",null,null,"鉄筋施工"]
[null,null,null,null,null,null,null,null,"床仕上げ科",null,null,null,null,null,null,null,null,"時計修理：時計修理作業","時計修理：時計修理作業",null,null,"コンクリート圧送施工"]
[null,null,null,null,null,null,null,null,"熱絶縁科",null,null,null,null,null,null,null,null,"自動ドア施工：自動ドア施工作業","自動ドア施工：自動ドア施工作業",null,null,"防水施工"]
[null,null,null,null,null,null,null,null,"サッシ・ガラス施工科",null,null,null,null,null,null,null,null,"自動販売機調整：自動販売機調整作業","自動販売機調整：自動販売機調整作業",null,null,"樹脂接着剤注入施工"]
[null,null,null,null,null,null,null,null,"土木科",null,null,null,null,null,null,null,null,"酒造：清酒製造作業","酒造：清酒製造作業",null,null,"内装仕上げ施工"]
[null,null,null,null,null,null,null,null,"測量科",null,null,null,null,null,null,null,null,"樹脂接着剤注入施工：樹脂接着剤注入工事作業","樹脂接着剤注入施工：樹脂接着剤注入工事作業",null,null,"熱絶縁施工"]
[null,null,null,null,null,null,null,null,"ボイラー科",null,null,null,null,null,null,null,null,"畳製作：畳製作作業","畳製作：畳製作作業",null,null,"カーテンウォール施工"]
[null,null,null,null,null,null,null,null,"クレーン科",null,null,null,null,null,null,null,null,"紳士服製造：紳士既製服製造作業","紳士服製造：紳士既製服製造作業",null,null,"サッシ施工"]
[null,null,null,null,null,null,null,null,"港湾荷役科",null,null,null,null,null,null,null,null,"厨房設備施工：厨房設備施工作業","厨房設備施工：厨房設備施工作業",null,null,"自動ドア施工"]
[null,null,null,null,null,null,null,null,"化学分析科",null,null,null,null,null,null,null,null,"製本：製本作業","製本：製本作業",null,null,"バルコニー施工"]
[null,null,null,null,null,null,null,null,"公害検査科",null,null,null,null,null,null,null,null,"石材施工：石材加工作業","石材施工：石材加工作業",null,null,"ガラス施工"]
[null,null,null,null,null,null,null,null,"漆器科",null,null,null,null,null,null,null,null,"石材施工：石積み作業","石材施工：石積み作業",null,null,"ウェルポイント施工"]
[null,null,null,null,null,null,null,null,"貴金属・宝石科",null,null,null,null,null,null,null,null,"石材施工：石張り作業","石材施工：石張り作業",null,null,"テクニカルイラストレーション"]
[null,null,null,null,null,null,null,null,"印章彫刻科",null,null,null,null,null,null,null,null,"切削工具研削：工作機械用切削工具研削作業","切削工具研削：工作機械用切削工具研削作業",null,null,"機械・プラント製図"]
[null,null,null,null,null,null,null,null,"表具科",null,null,null,null,null,null,null,null,"造園：造園工事作業","造園：造園工事作業",null,null,"電気製図"]
[null,null,null,null,null,null,null,null,"塗装科",null,null,null,null,null,null,null,null,"鍛造：ハンマ型鍛造作業","鍛造：ハンマ型鍛造作業",null,null,"金属材料試験"]
[null,null,null,null,null,null,null,null,"広告美術科",null,null,null,null,null,null,null,null,"築炉：築炉作業","築炉：築炉作業",null,null,"貴金属装身具製作"]
[null,null,null,null,null,null,null,null,"義肢装具科",null,null,null,null,null,null,null,null,"鋳造：鋳鉄鋳物鋳造作業","鋳造：鋳鉄鋳物鋳造作業",null,null,"印章彫刻"]
[null,null,null,null,null,null,null,null,"フォークリフト科",null,null,null,null,null,null,null,null,"鋳造：非鉄金属鋳物鋳造作業","鋳造：非鉄金属鋳物鋳造作業",null,null,"表装"]
[null,null,null,null,null,null,null,null,"電気通信科",null,null,null,null,null,null,null,null,"鉄筋施工：鉄筋施工図作成作業","鉄筋施工：鉄筋施工図作成作業",null,null,"塗装"]
[null,null,null,null,null,null,null,null,"電話交換科",null,null,null,null,null,null,null,null,"鉄筋施工：鉄筋組立て作業","鉄筋施工：鉄筋組立て作業",null,null,"路面標示施工"]
[null,null,null,null,null,null,null,null,"工業包装科",null,null,null,null,null,null,null,null,"鉄工：構造物鉄工作業","鉄工：構造物鉄工作業",null,null,"広告美術仕上げ"]
[null,null,null,null,null,null,null,null,"事務科",null,null,null,null,null,null,null,null,"鉄工：製缶作業","鉄工：製缶作業",null,null,"義肢・装具製作"]
[null,null,null,null,null,null,null,null,"貿易事務科",null,null,null,null,null,null,null,null,"鉄道車両製造・整備：機器ぎ装作業","鉄道車両製造・整備：機器ぎ装作業",null,null,"メカトロニクス"]
[null,null,null,null,null,null,null,null,"流通ビジネス科",null,null,null,null,null,null,null,null,"鉄道車両製造・整備：走行装置整備作業","鉄道車両製造・整備：走行装置整備作業",null,null,"電気溶接"]
[null,null,null,null,null,null,null,null,"介護サービス科",null,null,null,null,null,null,null,null,"鉄道車両製造・整備：鉄道車両点検・調整作業","鉄道車両製造・整備：鉄道車両点検・調整作業",null,null,"電工"]
[null,null,null,null,null,null,null,null,"写真科",null,null,null,null,null,null,null,null,"鉄道車両製造・整備：電気ぎ装作業","鉄道車両製造・整備：電気ぎ装作業",null,null,"自動車工"]
[null,null,null,null,null,null,null,null,"理容科",null,null,null,null,null,null,null,null,"鉄道車両製造・整備：内部ぎ装作業","鉄道車両製造・整備：内部ぎ装作業",null,null,"車体塗装"]
[null,null,null,null,null,null,null,null,"美容科",null,null,null,null,null,null,null,null,"鉄道車両製造・整備：配管ぎ装作業","鉄道車両製造・整備：配管ぎ装作業",null,null,"時計修理"]
[null,null,null,null,null,null,null,null,"ホテル・旅館・レストラン科",null,null,null,null,null,null,null,null,"電気機器組立て：シーケンス制御作業","電気機器組立て：シーケンス制御作業",null,null,"ウェブデザイン"]
[null,null,null,null,null,null,null,null,"観光ビジネス科",null,null,null,null,null,null,null,null,"電気機器組立て：配電盤･制御盤組立て作業","電気機器組立て：配電盤･制御盤組立て作業",null,null,"ITネットワークシステム管理"]
[null,null,null,null,null,null,null,null,"建築物衛生管理科",null,null,null,null,null,null,null,null,"電気機器組立て：変圧器組立て作業","電気機器組立て：変圧器組立て作業",null,null,"グラフィックデザイン"]
[null,null,null,null,null,null,null,null,"建築物設備管理科",null,null,null,null,null,null,null,null,"電気製図：配電盤･制御盤製図作業","電気製図：配電盤･制御盤製図作業",null,null,"業務用ITソフトウェア・ソリューションズ（旧：オフィスソフトウェア・ソリューション）"]
[null,null,null,null,null,null,null,null,"日本料理科",null,null,null,null,null,null,null,null,"電子機器組立て：電子機器組立て作業","電子機器組立て：電子機器組立て作業",null,null,"ロボットソフト組込"]
[null,null,null,null,null,null,null,null,"中国料理科",null,null,null,null,null,null,null,null,"塗装：金属塗装作業","塗装：金属塗装作業",null,null,"クラウドコンピューティング"]
[null,null,null,null,null,null,null,null,"西洋料理科",null,null,null,null,null,null,null,null,"塗装：建築塗装作業","塗装：建築塗装作業",null,null,"サイバーセキュリティ"]
[null,null,null,null,null,null,null,null,"臨床検査科",null,null,null,null,null,null,null,null,"塗装：鋼橋塗装作業","塗装：鋼橋塗装作業",null,null,"モバイルアプリケーション開発"]
[null,null,null,null,null,null,null,null,"デザイン科",null,null,null,null,null,null,null,null,"塗装：噴霧塗装作業","塗装：噴霧塗装作業",null,null,"3Dデジタルゲームアート"]
[null,null,null,null,null,null,null,null,"フラワー装飾科",null,null,null,null,null,null,null,null,"内装仕上げ施工：プラスチック系床仕上げ工事作業","内装仕上げ施工：プラスチック系床仕上げ工事作業",null,null,"AI・機械学習"]
[null,null,null,null,null,null,null,null,"情報処理科",null,null,null,null,null,null,null,null,"内装仕上げ施工：ボード仕上げ工事作業","内装仕上げ施工：ボード仕上げ工事作業",null,null,"データサイエンス(ビックデータ)"]
[null,null,null,null,null,null,null,null,null,null,null,null,null,null,null,null,null,"内装仕上げ施工：化粧フィルム工事作業","内装仕上げ施工：化粧フィルム工事作業"]
[null,null,null,null,null,null,null,null,null,null,null,null,null,null,null,null,null,"内装仕上げ施工：鋼製下地工事作業","内装仕上げ施工：鋼製下地工事作業"]
[null,null,null,null,null,null,null,null,null,null,null,null,null,null,null,null,null,"内燃機関組立て：量産形内燃機関組立て作業","内燃機関組立て：量産形内燃機関組立て作業"]
[null,null,null,null,null,null,null,null,null,null,null,null,null,null,null,null,null,"内燃機関組立て：量産形内燃機関組立て作業","内燃機関組立て：量産形内燃機関組立て作業"]
[null,null,null,null,null,null,null,null,null,null,null,null,null,null,null,null,null,"熱絶縁施工：吹付け硬質ウレタンフォーム断熱工事作業","熱絶縁施工：吹付け硬質ウレタンフォーム断熱工事作業"]
[null,null,null,null,null,null,null,null,null,null,null,null,null,null,null,null,null,"熱絶縁施工：保温保冷工事作業","熱絶縁施工：保温保冷工事作業"]
[null,null,null,null,null,null,null,null,null,null,null,null,null,null,null,null,null,"農業機械整備：農業機械整備作業","農業機械整備：農業機械整備作業"]
[null,null,null,null,null,null,null,null,null,null,null,null,null,null,null,null,null,"配管：プラント配管作業","配管：プラント配管作業"]
[null,null,null,null,null,null,null,null,null,null,null,null,null,null,null,null,null,"配管：建築配管作業","配管：建築配管作業"]
[null,null,null,null,null,null,null,null,null,null,null,null,null,null,null,null,null,"半導体製品製造：集積回路チップ製造作業","半導体製品製造：集積回路チップ製造作業"]
[null,null,null,null,null,null,null,null,null,null,null,null,null,null,null,null,null,"半導体製品製造：集積回路組立て作業","半導体製品製造：集積回路組立て作業"]
[null,null,null,null,null,null,null,null,null,null,null,null,null,null,null,null,null,"表装：表具作業","表装：表具作業"]
[null,null,null,null,null,null,null,null,null,null,null,null,null,null,null,null,null,"表装：壁装作業","表装：壁装作業"]
[null,null,null,null,null,null,null,null,null,null,null,null,null,null,null,null,null,"婦人子供服製造：婦人子供既製服パターンメーキング作業","婦人子供服製造：婦人子供既製服パターンメーキング作業"]
[null,null,null,null,null,null,null,null,null,null,null,null,null,null,null,null,null,"婦人子供服製造：婦人子供既製服縫製作業","婦人子供服製造：婦人子供既製服縫製作業"]
[null,null,null,null,null,null,null,null,null,null,null,null,null,null,null,null,null,"婦人子供服製造：婦人子供注文服製作作業","婦人子供服製造：婦人子供注文服製作作業"]
[null,null,null,null,null,null,null,null,null,null,null,null,null,null,null,null,null,"布はく縫製：ワイシャツ製造作業","布はく縫製：ワイシャツ製造作業"]
[null,null,null,null,null,null,null,null,null,null,null,null,null,null,null,null,null,"舞台機構調整：音響機構調整作業","舞台機構調整：音響機構調整作業"]
[null,null,null,null,null,null,null,null,null,null,null,null,null,null,null,null,null,"粉末冶金：焼結作業","粉末冶金：焼結作業"]
[null,null,null,null,null,null,null,null,null,null,null,null,null,null,null,null,null,"放電加工：ワイヤ放電加工作業","放電加工：ワイヤ放電加工作業"]
[null,null,null,null,null,null,null,null,null,null,null,null,null,null,null,null,null,"放電加工：数値制御形彫り放電加工作業","放電加工：数値制御形彫り放電加工作業"]
[null,null,null,null,null,null,null,null,null,null,null,null,null,null,null,null,null,"縫製機械整備：縫製機械整備作業","縫製機械整備：縫製機械整備作業"]
[null,null,null,null,null,null,null,null,null,null,null,null,null,null,null,null,null,"防水施工：FRP防水工事作業","防水施工：FRP防水工事作業"]
[null,null,null,null,null,null,null,null,null,null,null,null,null,null,null,null,null,"防水施工：アクリルゴム系塗膜防水工事作業","防水施工：アクリルゴム系塗膜防水工事作業"]
[null,null,null,null,null,null,null,null,null,null,null,null,null,null,null,null,null,"防水施工：アスファルト防水工事作業","防水施工：アスファルト防水工事作業"]
[null,null,null,null,null,null,null,null,null,null,null,null,null,null,null,null,null,"防水施工：ウレタンゴム系塗膜防水工事作業","防水施工：ウレタンゴム系塗膜防水工事作業"]
[null,null,null,null,null,null,null,null,null,null,null,null,null,null,null,null,null,"防水施工：シーリング防水工事作業","防水施工：シーリング防水工事作業"]
[null,null,null,null,null,null,null,null,null,null,null,null,null,null,null,null,null,"防水施工：塩化ビニル系シート防水工事作業","防水施工：塩化ビニル系シート防水工事作業"]
[null,null,null,null,null,null,null,null,null,null,null,null,null,null,null,null,null,"防水施工：改質アスファルトシートトーチ工法防水工事作業","防水施工：改質アスファルトシートトーチ工法防水工事作業"]
[null,null,null,null,null,null,null,null,null,null,null,null,null,null,null,null,null,"防水施工：改質アスファルトシート常温粘着工法防水工事作業","防水施工：改質アスファルトシート常温粘着工法防水工事作業"]
[null,null,null,null,null,null,null,null,null,null,null,null,null,null,null,null,null,"防水施工：合成ゴム系シート防水工事作業","防水施工：合成ゴム系シート防水工事作業"]
[null,null,null,null,null,null,null,null,null,null,null,null,null,null,null,null,null,"油圧装置調整：油圧装置調整作業","油圧装置調整：油圧装置調整作業"]
[null,null,null,null,null,null,null,null,null,null,null,null,null,null,null,null,null,"冷凍空気調和機器施工：冷凍空気調和機器施工作業","冷凍空気調和機器施工：冷凍空気調和機器施工作業"]
[null,null,null,null,null,null,null,null,null,null,null,null,null,null,null,null,null,"和裁：和服製作作業","和裁：和服製作作業"]

{"sheet":"集計用","index":6,"n_rows":5,"n_cols":43,"rows_kept":5,"cut":false,"hidden":true,"merged":[]}
[]
[]
["部門番号","氏名","かな","外字","性別","生年月日","年齢","都道府県番号","都道府県・団体名・推薦者氏名","都道府県内推薦順位","都道府県\n推薦総数","職種１","職種２","就業地\n（所在地）","所属企業名","事業所名","企業全体の従業員数","過去\n推薦\n回数","過去５年\n補選","大臣\n表彰","知事・行政\n機関の局長\n表彰","全国レベルの\n業界団体\n表彰","その他","高度熟練\n技能者","ものづくり\nマイスター","全技連\nマイスター","技能\nグランプリ","五輪国際","五輪全国","職業訓練\n指導員免許","技能検定\n委員","特許・実用新案等","技能検定\n（特級）","技能検定\n（１級）","技能検定\n（２級）","技能検定\n（単一等級）","技能検定\n（３級）","国際アビリンピック","全国アビリンピック","地方アビリンピック","障害の種類","級","障害の概要"]
[{"$f":"調書１!E3","v":"22部門"},{"$f":"調書１!C6&\"\"","v":""},{"$f":"調書１!C5&\"\"","v":""},{"$f":"調書１!I6&\"\"","v":""},{"$f":"調書１!E5&\"\"","v":""},{"$f":"調書１!F6","v":"00:00:00"},{"$f":"調書１!E6&\"\"","v":""},{"$f":"調書１!B3&\"\"","v":"-"},{"$f":"調書１!C4&\"\"","v":""},{"$f":"調書２!C16&\"\"","v":""},{"$f":"調書２!C15&\"\"","v":""},{"$f":"調書１!F4","v":0},{"$f":"調書１!I4&\"\"","v":""},{"$f":"調書１!C23&\"\"","v":""},{"$f":"調書１!C18&\"\"","v":""},{"$f":"調書１!C19&\"\"","v":""},{"$f":"調書１!C19&\"\"","v":""},{"$f":"調書２!B12&\"\"","v":"0"},null,{"$f":"IF(ISTEXT(調書１!E28),\"〇\",\"\")","v":""},{"$f":"IF(ISTEXT(調書１!E29),\"〇\",\"\")","v":""},{"$f":"IF(ISTEXT(調書１!E30),\"〇\",\"\")","v":""},{"$f":"IF(ISTEXT(調書１!E31),\"〇\",\"\")","v":""},{"$f":"IF(ISTEXT(調書１!E43),\"〇\",\"\")","v":""},{"$f":"IF(ISTEXT(調書１!E44),\"〇\",\"\")","v":""},{"$f":"IF(ISTEXT(調書１!E45),\"〇\",\"\")","v":""},{"$f":"IF(ISTEXT(調書１!E40),\"〇\",\"\")","v":""},{"$f":"IF(ISTEXT(調書１!E41),\"〇\",\"\")","v":""},{"$f":"IF(ISTEXT(調書１!E42 ),\"〇\",\"\")","v":""},{"$f":"IF(ISTEXT(調書１!D33),\"〇\",\"\")","v":""},{"$f":"IF(ISTEXT(調書１!D34),\"〇\",\"\")","v":""},{"$f":"IF(ISTEXT(調書１!D35),\"〇\",\"\")","v":""},{"$f":"IF(COUNTIF(調書１!I37:I42,\"特級*\"),\"〇\",\"\")","v":""},{"$f":"IF(COUNTIF(調書１!I37:I42,\"一級*\"),\"〇\",\"\")","v":""},{"$f":"IF(COUNTIF(調書１!I37:I42,\"二級*\"),\"〇\",\"\")","v":""},{"$f":"IF(COUNTIF(調書１!I37:I42,\"単一等級*\"),\"〇\",\"\")","v":""},null,{"$f":"IF(ISTEXT(調書１!E37),\"〇\",\"\")","v":""},{"$f":"IF(ISTEXT(調書１!E38),\"〇\",\"\")","v":""},{"$f":"IF(ISTEXT(調書１!E39),\"〇\",\"\")","v":""},{"$f":"調書１!C8&調書１!C9&調書１!C10","v":""},{"$f":"調書１!D8&調書１!D9&調書１!D10","v":""},{"$f":"調書１!C10&\"\"","v":""}]
[null,null,null,null,null,null,"自動",null,null,null,null,null,null,null,null,null,null,null,"手打ち"]